bitfinex/quotes_ETHUSD_20220115
["timestamp","ask_amount","ask_price","bid_price","bid_amount"]
[1642266686962,2.12770763,3352.3,3352.2,25.28037743]
[1642266687162,1.55513685,3352.3,3352.2,25.28037743]
[1642266687362,1.55513685,3352.3,3352.2,7.86037743]
[1642266687562,0.88250319,3352.6,3352.2,7.86037743]
[1642266687764,0.777,3352.9,3352.3,0.7452747]
[1642266687964,0.00113685,3352.5,3352.4,4.56697632]
[1642266688163,0.777,3352.9,3352.4,4.71875445]
[1642266688566,0.00170527,3352.8,3352.4,4.71875445]
[1642266688810,1.554,3352.9,3352.5,1.49136386]
[1642266689110,1.554,3352.9,3352.6,0.43013685]
[1642266689311,0.1193,3353.2,3352.7,1.16885089]
[1642266689511,0.1193,3353.2,3352.8,1.17421]
[1642266689711,0.00170527,3353.1,3352.8,1.20557019]
[1642266690111,0.00113684,3353.0,3352.8,1.20557019]
[1642266690511,0.00113684,3353.0,3352.8,1.95082019]
[1642266691712,0.1193,3353.2,3352.8,1.95082019]
[1642266692313,0.1193,3353.2,3352.9,0.7452276]
[1642266692574,0.1196,3353.3,3352.9,1.20924597]
[1642266692764,0.1196,3353.3,3352.9,1.1742276]
[1642266692966,0.00113685,3353.2,3352.9,3.10602293]
[1642266693166,0.00113685,3353.2,3352.9,3.07037187]
[1642266693366,0.1196,3353.3,3352.9,3.10962576]
[1642266693566,0.1196,3353.3,3352.9,1.1742276]
[1642266693772,0.1196,3353.3,3353.1,1.49038]
[1642266694367,0.1196,3353.3,3353.2,0.429]
[1642266694669,0.72251064,3353.6,3353.2,0.429]
[1642266694869,1.49951064,3353.6,3353.4,1.48152585]
[1642266695069,0.00170527,3353.5,3353.4,1.48152585]
[1642266696070,0.00170527,3353.5,3353.4,2.71375492]
[1642266696510,0.8962,3353.6,3353.4,2.71375492]
[1642266697510,3.108,3353.7,3353.5,1.88760631]
[1642266697713,3.108,3353.7,3353.6,1.49021]
[1642266698111,3.88613685,3353.7,3353.6,1.49021]
[1642266699713,3.88613685,3353.7,3353.6,4.91921]
[1642266699916,3.88613685,3353.7,3353.6,6.79603926]
[1642266700360,3.88613685,3353.7,3353.6,4.91921]
[1642266700760,2.331,3353.8,3353.6,4.91921]
[1642266700964,2.331,3353.8,3353.6,5.66429]
[1642266701360,3.108,3353.8,3353.6,5.66429]
[1642266701568,3.108,3353.8,3353.7,1.49022]
[1642266703818,0.8962,3354.2,3353.7,1.49022]
[1642266704127,0.8962,3354.2,3353.8,0.03813728]
[1642266704128,0.00227369,3354.1,3353.8,0.03813728]
[1642266704317,0.00227369,3354.1,3353.8,1.49021]
[1642266704518,0.00170527,3354.0,3353.8,1.49021]
[1642266704916,0.00113685,3353.9,3353.8,1.49021]
[1642266706217,0.777,3354.1,3353.8,1.49021]
[1642266706618,0.777,3354.1,3353.7,0.8643]
[1642266706824,2.5499691,3354.0,3353.7,0.7451]
[1642266707670,3.3269691,3354.0,3353.7,0.7451]
[1642266707873,0.1192,3353.9,3353.7,0.7451]
[1642266708069,0.1192,3353.9,3353.6,3.0]
[1642266708266,2.6691691,3353.9,3353.6,3.0]
[1642266708466,2.6691691,3353.9,3353.7,0.00113685]
[1642266709473,7.4499691,3353.8,3353.7,0.00113685]
[1642266710766,8.2269691,3353.8,3353.7,0.00113685]
[1642266711167,3.3269691,3353.8,3353.7,0.00113685]
[1642266713525,8.3769691,3353.8,3353.7,0.00113685]
[1642266713730,3.3269691,3353.8,3353.7,0.00113685]
[1642266713926,4.1039691,3353.8,3353.7,0.00113685]
[1642266714532,21.06166886,3353.8,3353.7,0.00113685]
[1642266715469,23.1839068,3353.8,3353.7,0.00113685]
[1642266715670,1.07937813,3353.4,3352.8,0.1192]
[1642266715869,2.10249915,3353.3,3352.9,1.36095877]
[1642266716066,1.36152857,3353.1,3352.9,1.36550616]
[1642266716270,1.07937813,3353.4,3352.9,1.36550616]
[1642266716271,1.89987542,3353.0,3352.9,1.36550616]
[1642266716471,2.19637883,3353.3,3352.9,1.36550616]
[1642266716767,2.19637883,3353.3,3353.0,0.00397897]
[1642266717173,2.97337883,3353.3,3353.0,0.00397897]
[1642266717372,3.88857746,3353.2,3353.0,0.00397897]
[1642266717568,5.69720893,3353.1,3353.0,0.00397897]
[1642266717767,1.94720893,3353.1,3353.0,0.00397897]
[1642266718368,4.49717803,3353.1,3353.0,0.00397897]
[1642266719419,5.61523713,3353.1,3353.0,0.00397897]
[1642266720223,4.49717803,3353.1,3353.0,0.00397897]
[1642266720421,9.12417803,3353.1,3353.0,0.00397897]
[1642266720622,5.27417803,3353.1,3353.0,3.00397897]
[1642266721622,3.3269691,3353.1,3353.0,3.00397897]
[1642266722862,4.77623036,3353.1,3353.0,3.00397897]
[1642266723663,5.55323036,3353.1,3353.0,3.00397897]
[1642266725261,4.1039691,3353.1,3353.0,3.00397897]
[1642266726716,5.41333903,3353.1,3353.0,3.00397897]
[1642266726917,6.19033903,3353.1,3353.0,3.00397897]
[1642266727318,4.8809691,3353.1,3353.0,3.00397897]
[1642266728620,5.99295427,3353.1,3353.0,3.00397897]
[1642266729020,7.91521083,3353.1,3353.0,3.00397897]
[1642266730073,9.38984094,3353.1,3353.0,3.00397897]
[1642266730268,10.16684094,3353.1,3353.0,3.00397897]
[1642266731562,9.05485577,3353.1,3353.0,3.00397897]
[1642266731963,7.77685272,3353.1,3353.0,3.00397897]
[1642266732164,7.77685272,3353.1,3353.0,4.40898228]
[1642266732367,6.30222261,3353.1,3353.0,4.40898228]
[1642266733564,6.4349691,3353.1,3353.0,4.40898228]
[1642266736811,7.2119691,3353.1,3353.0,4.40898228]
[1642266740064,8.63377369,3353.1,3353.0,4.40898228]
[1642266743312,9.41077369,3353.1,3353.0,4.40898228]
[1642266744109,8.7659691,3353.1,3353.0,4.40898228]
[1642266746462,9.5429691,3353.1,3353.0,4.40898228]
[1642266746864,9.5429691,3353.1,3353.0,4.40500331]
[1642266748165,9.47940238,3353.1,3353.0,4.40500331]
[1642266748913,9.36021477,3353.1,3353.0,4.40500331]
[1642266749714,10.13721477,3353.1,3353.0,4.40500331]
[1642266750313,10.78261915,3353.1,3353.0,4.40500331]
[1642266752963,11.55961915,3353.1,3353.0,4.40500331]
[1642266755868,13.03424926,3353.1,3353.0,4.40500331]
[1642266756069,13.81124926,3353.1,3353.0,4.40500331]
[1642266758114,12.33661915,3353.1,3353.0,4.40500331]
[1642266758916,13.82270481,3353.1,3353.0,4.40500331]
[1642266759316,13.11361915,3353.1,3353.0,4.40500331]
[1642266760262,13.06361915,3353.1,3353.0,4.40500331]
[1642266760664,15.3390639,3353.1,3353.0,4.40500331]
[1642266761463,13.06361915,3353.1,3353.0,4.40500331]
[1642266762466,13.84061915,3353.1,3353.0,4.40500331]
[1642266764117,13.95981915,3353.1,3353.0,4.40500331]
[1642266764715,16.2352639,3353.1,3353.0,4.40500331]
[1642266765017,16.1160639,3353.1,3353.0,4.40500331]
[1642266765614,16.8930639,3353.1,3353.0,4.40500331]
[1642266768765,15.39461915,3353.1,3353.0,4.40500331]
[1642266770066,17.6700639,3353.1,3353.0,4.40500331]
[1642266771912,18.4470639,3353.1,3353.0,4.40500331]
[1642266773616,18.4470639,3353.1,3353.0,4.45046631]
[1642266774016,18.4470639,3353.1,3353.0,4.99866631]
[1642266774017,12.4853939,3353.1,3353.0,4.99866631]
[1642266774518,11.69874561,3353.1,3353.0,4.99866631]
[1642266775162,12.47574561,3353.1,3353.0,4.99866631]
[1642266775362,10.68120084,3353.1,3353.0,4.99866631]
[1642266775562,3.56235565,3353.1,3353.0,4.87946631]
[1642266775861,2.07355919,3353.1,3353.0,4.87946631]
[1642266777062,2.07355919,3353.1,3353.0,4.73036837]
[1642266777464,2.07355919,3353.1,3353.0,4.84956837]
[1642266778261,2.85055919,3353.1,3353.0,4.84956837]
[1642266779916,2.60725896,3353.1,3353.0,4.84956837]
[1642266780613,0.73027091,3353.3,3353.0,5.59474837]
[1642266780815,0.73027091,3353.3,3353.2,0.74516]
[1642266781015,1.07937813,3353.4,3353.2,0.74516]
[1642266781413,1.85637813,3353.4,3353.3,0.0022737]
[1642266781617,1.85637813,3353.4,3353.3,1.46896904]
[1642266782013,1.85637813,3353.4,3353.3,1.51443204]
[1642266783066,1.85637813,3353.4,3353.3,1.46896904]
[1642266784069,1.97557813,3353.4,3353.3,1.46896904]
[1642266784670,6.30257813,3353.4,3353.3,1.46896904]
[1642266785074,7.79137459,3353.4,3353.3,1.46896904]
[1642266786068,6.30257813,3353.4,3353.3,1.46896904]
[1642266786718,7.78853571,3353.4,3353.3,1.46896904]
[1642266787318,6.30257813,3353.4,3353.3,1.46896904]
[1642266787722,7.07957813,3353.4,3353.3,1.46896904]
[1642266788518,8.55860296,3353.4,3353.3,1.46896904]
[1642266789618,5.00860296,3353.4,3353.3,1.46896904]
[1642266789820,4.88940296,3353.4,3353.3,1.46896904]
[1642266790076,5.00860296,3353.4,3353.3,1.46896904]
[1642266790370,3.52264538,3353.4,3353.3,1.46896904]
[1642266790764,8.82264538,3353.4,3353.3,1.46896904]
[1642266790965,4.29964538,3353.4,3353.3,1.46896904]
[1642266791765,5.78674475,3353.4,3353.3,1.46896904]
[1642266791965,5.78674475,3353.4,3353.3,0.0022737]
[1642266793065,5.66754475,3353.4,3353.3,1.25007555]
[1642266793471,4.18044538,3353.4,3353.3,0.0022737]
[1642266794123,7.50772766,3353.4,3353.3,0.0022737]
[1642266794315,7.50772766,3353.4,3353.2,0.00284212]
[1642266795117,7.50772766,3353.4,3353.3,1.31695873]
[1642266795523,4.95744538,3353.4,3353.3,1.31923243]
[1642266797322,5.73444538,3353.4,3353.3,1.31923243]
[1642266798770,5.73444538,3353.4,3353.3,1.36469543]
[1642266799772,5.73444538,3353.4,3353.3,1.31923243]
[1642266800576,6.51144538,3353.4,3353.3,1.31923243]
[1642266800778,6.51144538,3353.4,3353.3,1.36469543]
[1642266801176,6.51144538,3353.4,3353.3,1.31923243]
[1642266803716,7.28844538,3353.4,3353.3,1.31923243]
[1642266805269,7.28844538,3353.4,3353.3,1.36469543]
[1642266806870,8.06544538,3353.4,3353.3,1.36469543]
[1642266810112,8.84244538,3353.4,3353.3,1.36469543]
[1642266810711,11.39249664,3353.4,3353.3,1.36469543]
[1642266811516,11.39249664,3353.4,3353.3,1.31923243]
[1642266813365,12.16949664,3353.4,3353.3,1.31923243]
[1642266813968,12.14949664,3353.4,3353.3,1.31923243]
[1642266816623,12.92649664,3353.4,3353.3,1.31923243]
[1642266817424,13.04569664,3353.4,3353.3,1.31923243]
[1642266819225,11.99325126,3353.4,3353.3,1.31923243]
[1642266819624,12.77025126,3353.4,3353.3,1.31923243]
[1642266822473,12.72025126,3353.4,3353.3,1.31923243]
[1642266822875,13.49725126,3353.4,3353.3,1.31923243]
[1642266825021,14.98435063,3353.4,3353.3,1.31923243]
[1642266825519,14.98435063,3353.4,3353.3,1.31695873]
[1642266825720,13.49725126,3353.4,3353.3,1.31695873]
[1642266826122,14.27425126,3353.4,3353.3,1.31695873]
[1642266827223,15.7681277,3353.4,3353.3,1.31695873]
[1642266828070,14.27425126,3353.4,3353.3,1.31695873]
[1642266828270,14.15505126,3353.4,3353.3,1.31695873]
[1642266829271,14.93205126,3353.4,3353.3,1.31695873]
[1642266829676,16.54432982,3353.4,3353.3,1.31695873]
[1642266830075,16.54432982,3353.4,3353.0,2.85090206]
[1642266830274,2.1891933,3353.3,3353.0,2.85090206]
[1642266830475,2.1891933,3353.3,3353.1,0.00341054]
[1642266830678,17.95390261,3353.2,3353.1,0.00341054]
[1642266830875,18.07310261,3353.2,3353.1,0.00341054]
[1642266831333,20.62315387,3353.2,3353.1,1.54824924]
[1642266831530,4.87315387,3353.2,3353.1,1.54824924]
[1642266832129,8.69835575,3353.2,3353.1,1.54824924]
[1642266832528,9.47535575,3353.2,3353.1,1.54824924]
[1642266832930,5.65015387,3353.2,3353.1,1.54824924]
[1642266834336,7.1418366,3353.2,3353.1,1.54824924]
[1642266835573,7.0226366,3353.2,3353.1,1.54824924]
[1642266835773,7.7996366,3353.2,3353.1,1.54824924]
[1642266837375,6.30795387,3353.2,3353.1,1.54824924]
[1642266838177,7.79863854,3353.2,3353.1,1.54824924]
[1642266838816,5.59473593,3353.2,3353.1,1.54824924]
[1642266839016,6.37173593,3353.2,3353.1,1.54824924]
[1642266839421,8.6,3353.1,3352.6,0.045463]
[1642266839628,2.0,3353.0,3351.5,0.164663]
[1642266839918,2.1193,3353.0,3352.7,0.0022737]
[1642266840118,2.1193,3353.0,3351.3,0.0715737]
[1642266840119,0.1193,3353.0,3351.3,0.0715737]
[1642266840318,1.42374853,3352.6,3352.2,1.24403277]
[1642266840718,2.1215737,3353.1,3352.3,0.00227369]
[1642266840923,4.82549601,3352.9,3352.3,0.00227369]
[1642266841722,4.82549601,3352.9,3352.8,1.22589124]
[1642266842021,0.00170527,3353.0,3352.8,1.22589124]
[1642266842226,0.777,3352.9,3352.8,1.22589124]
[1642266842423,0.777,3352.9,3352.3,0.00227369]
[1642266842675,0.777,3352.9,3352.6,0.045463]
[1642266842870,0.777,3352.9,3352.2,0.00284211]
[1642266843074,0.777,3352.9,3352.4,0.045463]
[1642266843272,0.777,3352.9,3352.3,0.045463]
[1642266843470,0.777,3352.9,3352.5,0.00113684]
[1642266843671,0.777,3352.9,3352.8,1.32107559]
[1642266843871,2.75448623,3352.9,3352.4,0.00170527]
[1642266844071,1.96044559,3352.8,3352.4,0.00170527]
[1642266845072,1.14821622,3352.5,3352.4,1.21881537]
[1642266845470,1.92521622,3352.5,3352.4,0.00170527]
[1642266846174,0.777,3352.5,3352.4,0.00170527]
[1642266847826,2.14039547,3352.5,3352.4,0.00170527]
[1642266848629,2.91739547,3352.5,3352.4,0.00170527]
[1642266848831,4.92560295,3352.5,3352.4,0.00170527]
[1642266849328,4.89349303,3352.5,3352.4,0.00170527]
[1642266849528,2.91739547,3352.5,3352.4,0.00170527]
[1642266850772,2.91739547,3352.5,3352.4,1.33561715]
[1642266851173,17.0,3352.3,3351.1,3.7348]
[1642266851375,0.01208463,3351.7,3351.5,0.1193]
[1642266851573,12.1693,3351.6,3351.5,0.1193]
[1642266851971,7.5693,3351.6,3351.5,0.12441581]
[1642266852170,8.88738429,3351.6,3351.5,0.12441581]
[1642266853575,8.88738429,3351.6,3351.5,3.12441581]
[1642266853843,8.88738429,3351.6,3351.5,0.14141581]
[1642266854533,1.43738429,3351.6,3351.5,0.14141581]
[1642266854733,3.46557612,3351.6,3351.5,0.14141581]
[1642266854936,4.24257612,3351.6,3351.5,0.14141581]
[1642266855936,8.14257612,3351.6,3351.5,0.14141581]
[1642266856637,4.24257612,3351.6,3351.5,0.14141581]
[1642266857436,6.79420239,3351.6,3351.5,0.14141581]
[1642266858071,7.57120239,3351.6,3351.5,0.14141581]
[1642266859081,9.09688682,3351.6,3351.5,0.14141581]
[1642266860287,4.85,3351.5,3350.4,3.56585981]
[1642266860483,1.9407102,3351.4,3350.4,3.56585981]
[1642266860680,1.9407102,3351.4,3350.5,0.00568423]
[1642266861081,4.49233647,3351.4,3350.5,0.00568423]
[1642266861324,5.26933647,3351.4,3350.5,0.00568423]
[1642266861524,1.15175271,3350.6,3350.5,0.00568423]
[1642266861825,1.35006295,3351.0,3350.5,0.00568423]
[1642266862031,3.2202,3351.3,3350.5,0.00568423]
[1642266862032,1.9085213,3351.2,3350.5,0.00568423]
[1642266862624,1.9085213,3351.2,3350.4,0.00625266]
[1642266863025,3.2202,3351.3,3350.7,1.27086398]
[1642266863224,1.31370678,3351.3,3350.7,1.27086398]
[1642266863427,1.31370678,3351.3,3350.8,0.00397896]
[1642266863928,1.31370678,3351.3,3350.6,0.00511581]
[1642266864329,0.777,3351.4,3350.6,1.49671581]
[1642266864527,0.777,3351.3,3351.2,1.12606667]
[1642266864927,0.777,3351.3,3351.2,1.12777194]
[1642266865384,0.777,3351.3,3351.2,3.06267198]
[1642266865572,0.777,3351.3,3351.2,3.13006581]
[1642266866572,0.777,3351.3,3351.2,3.06267198]
[1642266866771,0.777,3351.3,3351.2,1.55677194]
[1642266867175,0.777,3351.4,3351.2,3.50314154]
[1642266867472,0.777,3351.4,3351.3,0.00113684]
[1642266867671,1.554,3351.4,3351.3,0.43013684]
[1642266867871,1.554,3351.4,3351.3,1.74653619]
[1642266868078,1.554,3351.6,3351.3,1.75886866]
[1642266868271,1.554,3351.6,3351.3,1.79275315]
[1642266869331,1.554,3351.6,3351.4,0.1193]
[1642266869533,1.554,3351.6,3351.5,1.17459]
[1642266869732,1.554,3351.6,3351.5,1.29389]
[1642266870333,1.554,3351.6,3351.5,3.18452962]
[1642266870935,2.331,3351.6,3351.5,3.06522962]
[1642266871333,2.331,3351.6,3351.5,1.17459]
[1642266871736,0.777,3351.7,3351.5,1.17459]
[1642266871940,0.777,3351.7,3351.6,0.1193]
[1642266872137,0.777,3351.7,3351.6,0.429]
[1642266872338,0.77813685,3351.7,3351.6,0.429]
[1642266872780,0.77813685,3351.7,3351.6,1.95407065]
[1642266872982,0.1193,3352.3,3351.6,1.95407065]
[1642266873284,0.00284212,3352.2,3351.6,1.95407065]
[1642266873480,0.1193,3352.1,3351.6,1.95407065]
[1642266873681,0.12157369,3352.1,3351.6,0.429]
[1642266873880,0.00170527,3352.0,3351.6,0.429]
[1642266874285,0.00113685,3351.9,3351.6,0.429]
[1642266874981,1.1102833,3351.8,3351.6,0.429]
[1642266875786,2.55233643,3351.9,3351.6,0.429]
[1642266876426,2.55119958,3351.7,3351.6,0.429]
[1642266876827,2.55119958,3351.7,3351.3,0.00113684]
[1642266877027,2.67049958,3351.8,3351.3,0.00113684]
[1642266877223,2.67049958,3351.8,3351.2,0.43184212]
[1642266877224,0.777,3351.7,3351.2,0.43184212]
[1642266877424,0.1193,3351.6,3351.3,0.00227369]
[1642266877628,0.1193,3351.6,3351.3,0.74799369]
[1642266878026,0.1193,3351.6,3351.4,0.00170527]
[1642266878625,2.55119958,3351.5,3351.4,0.00170527]
[1642266878827,2.67049958,3351.5,3351.4,0.00170527]
[1642266879425,2.67049958,3351.5,3351.3,0.74799369]
[1642266879631,0.1193,3351.4,3351.3,0.74799369]
[1642266879825,0.1193,3351.4,3351.3,0.74572]
[1642266880276,2.67049958,3351.4,3351.3,0.74572]
[1642266880477,3.32819958,3351.4,3351.3,0.74572]
[1642266881081,0.777,3351.4,3351.3,0.74572]
[1642266881877,3.32848995,3351.4,3351.3,0.74572]
[1642266882377,3.44778995,3351.4,3351.3,0.74572]
[1642266882576,3.32848995,3351.4,3351.3,0.74572]
[1642266882775,3.27848995,3351.4,3351.3,0.74572]
[1642266883581,4.05548995,3351.4,3351.3,0.74572]
[1642266886826,4.83248995,3351.4,3351.3,0.74572]
[1642266889370,4.83248995,3351.4,3351.3,0.751687]
[1642266889969,5.60948995,3351.4,3351.3,0.751687]
[1642266892926,5.60948995,3351.4,3351.3,0.870987]
[1642266893124,6.38648995,3351.4,3351.3,0.751687]
[1642266893327,6.38648995,3351.4,3351.3,2.20186955]
[1642266893525,6.38648995,3351.4,3351.3,2.63086955]
[1642266894325,6.38648995,3351.4,3351.3,2.75016955]
[1642266895987,6.38648995,3351.4,3351.3,2.19395059]
[1642266896187,7.16348995,3351.4,3351.3,1.32893059]
[1642266896387,7.28278995,3351.4,3351.3,0.005967]
[1642266897187,1.17514171,3351.3,3350.8,1.49154]
[1642266897391,0.1193,3351.2,3350.8,0.74583]
[1642266897589,0.1193,3351.2,3350.9,0.00454739]
[1642266897987,0.045463,3351.1,3350.7,0.00568424]
[1642266898187,0.045463,3351.1,3350.2,2.1193]
[1642266898188,0.1193,3351.0,3350.6,0.00625266]
[1642266898587,0.1193,3351.0,3350.3,0.00795793]
[1642266899425,0.8963,3351.0,3350.3,0.00795793]
[1642266900828,2.55148995,3350.9,3350.3,0.00795793]
[1642266901026,0.1193,3350.8,3350.3,0.00795793]
[1642266901427,0.164763,3350.8,3350.3,0.00795793]
[1642266901837,1.34624785,3350.7,3350.1,0.00909478]
[1642266902028,1.3012876,3350.6,3350.1,0.00909478]
[1642266902680,2.0782876,3350.6,3350.1,0.00909478]
[1642266902883,2.55148995,3350.5,3350.1,0.00909478]
[1642266903077,2.55148995,3350.5,3350.0,0.0096632]
[1642266903277,2.55148995,3350.5,3350.1,0.74595]
[1642266903477,2.55148995,3350.5,3350.1,0.81381888]
[1642266903683,2.55148995,3350.5,3350.2,0.00852635]
[1642266904078,2.25148995,3350.5,3350.2,0.07639523]
[1642266904483,0.8963,3350.6,3350.3,0.00795793]
[1642266905681,1.6733,3350.6,3350.3,0.00795793]
[1642266906082,1.34488259,3350.5,3350.0,0.0096632]
[1642266906725,1.34488259,3350.5,3349.9,0.01023162]
[1642266906936,1.34488259,3350.5,3350.0,0.74602]
[1642266907326,1.34488259,3350.5,3350.1,0.07696366]
[1642266907527,1.34488259,3350.5,3350.1,0.00909478]
[1642266908528,0.1193,3350.4,3350.1,0.00909478]
[1642266908728,0.1193,3350.5,3350.1,0.00909478]
[1642266908930,0.777,3350.4,3350.2,0.04340259]
[1642266909130,0.777,3350.4,3350.1,0.07696366]
[1642266909331,0.777,3350.4,3350.3,0.00795793]
[1642266909529,0.777,3350.4,3350.2,0.00852635]
[1642266910773,0.777,3350.4,3350.3,0.74591]
[1642266911170,0.777,3350.4,3350.3,0.75386793]
[1642266912173,1.554,3350.4,3350.3,0.75386793]
[1642266912575,1.52219086,3350.4,3350.3,0.75386793]
[1642266914422,1.60293179,3350.4,3350.3,0.00795793]
[1642266914622,1.68367272,3350.4,3350.3,0.75382793]
[1642266914823,1.68367272,3350.4,3350.3,0.74587]
[1642266915029,1.68367272,3350.4,3350.3,0.75382793]
[1642266915421,2.46067272,3350.4,3350.3,0.75382793]
[1642266916940,1.554,3350.6,3350.3,10.90625031]
[1642266917128,1.554,3350.6,3350.4,0.0510538]
[1642266917326,1.554,3350.6,3350.5,0.58828607]
[1642266917588,0.164763,3351.5,3350.7,0.74568]
[1642266917786,0.164763,3351.5,3350.9,1.49138]
[1642266917986,0.164763,3351.5,3350.9,1.92038]
[1642266917987,1.38941942,3351.3,3350.9,1.92038]
[1642266918286,1.38941942,3351.3,3351.0,0.00397896]
[1642266918681,2.16641942,3351.3,3351.0,0.00397896]
[1642266921720,2.28571942,3351.3,3351.0,0.00397896]
[1642266921922,3.06271942,3351.3,3351.0,0.00397896]
[1642266923821,1.6733,3351.3,3351.0,0.00397896]
[1642266924021,1.554,3351.3,3351.0,0.00397896]
[1642266924422,1.554,3351.3,3351.1,0.74569]
[1642266924823,1.554,3351.3,3351.2,0.00284212]
[1642266925081,3.0891109,3351.3,3351.2,0.00284212]
[1642266925286,3.8661109,3351.3,3351.2,0.00284212]
[1642266927485,2.331,3351.3,3351.2,0.00284212]
[1642266928286,0.777,3351.3,3351.2,0.03983521]
[1642266928485,0.777,3351.3,3351.2,0.00284212]
[1642266930931,4.617967,3351.4,3351.2,0.07802623]
[1642266931230,4.617967,3351.4,3351.3,0.00227369]
[1642266931630,5.394967,3351.4,3351.3,0.00227369]
[1642266932333,6.93299114,3351.4,3351.2,0.00284212]
[1642266932572,12.314763,3351.3,3351.2,0.00284212]
[1642266932775,12.314763,3351.3,3351.1,0.00341054]
[1642266933577,16.13996488,3351.3,3351.1,0.00341054]
[1642266934174,3.98996488,3351.3,3351.1,0.00341054]
[1642266934373,3.98996488,3351.3,3351.1,0.04701212]
[1642266934574,3.98996488,3351.3,3351.1,0.74918054]
[1642266934774,4.76696488,3351.3,3351.2,0.00284212]
[1642266935176,4.76696488,3351.3,3351.1,0.00341054]
[1642266935380,7.11511485,3351.3,3351.1,0.00341054]
[1642266935582,19.45786077,3351.2,3351.1,0.00341054]
[1642266935775,17.1193,3351.2,3351.1,0.00341054]
[1642266936429,0.1193,3351.2,3351.1,0.00341054]
[1642266937028,5.8693,3351.2,3351.1,0.00341054]
[1642266937230,0.1193,3351.2,3351.1,0.00341054]
[1642266938029,0.8963,3351.2,3351.1,0.00341054]
[1642266939628,0.8963,3351.2,3351.1,0.74915054]
[1642266940076,0.777,3351.2,3351.1,0.74915054]
[1642266940478,3.32887374,3351.2,3351.1,0.74915054]
[1642266941276,4.10587374,3351.2,3351.1,0.74915054]
[1642266942284,4.10587374,3351.2,3351.1,0.00341054]
[1642266943931,3.90564842,3351.2,3351.1,0.00341054]
[1642266944333,4.68264842,3351.2,3351.1,0.00341054]
[1642266944531,4.68264842,3351.2,3351.0,2.95341054]
[1642266944734,4.68264842,3351.2,3351.0,2.90341054]
[1642266945132,4.68264842,3351.2,3351.1,0.74574]
[1642266945531,2.13077468,3351.2,3351.1,0.74574]
[1642266946142,0.777,3351.3,3351.1,0.74574]
[1642266946334,0.777,3351.3,3351.1,2.73093805]
[1642266946532,0.777,3351.3,3351.1,2.7693215]
[1642266946732,1.62610114,3351.4,3351.2,0.0120421]
[1642266946934,0.207377,3351.4,3351.3,1.61048]
[1642266947575,0.984377,3351.4,3351.3,1.61048]
[1642266947874,0.984377,3351.4,3351.3,0.1193]
[1642266947875,12.49914,3351.4,3351.3,0.1193]
[1642266948273,13.66625843,3351.4,3351.3,0.1193]
[1642266948473,2.31625843,3351.4,3351.3,0.1193]
[1642266948680,2.15149543,3351.4,3351.3,0.1193]
[1642266948973,9.12955111,3351.4,3351.3,0.1193]
[1642266949574,9.24885111,3351.4,3351.3,0.1193]
[1642266949876,7.77079543,3351.4,3351.3,0.1193]
[1642266950678,8.59325843,3351.4,3351.3,0.1193]
[1642266951927,12.64325843,3351.4,3351.3,0.1193]
[1642266952331,12.64325843,3351.4,3351.0,2.90341054]
[1642266952532,0.045463,3351.2,3351.0,2.90341054]
[1642266952730,0.1193,3351.1,3351.0,2.90341054]
[1642266952930,0.1193,3351.1,3350.0,0.15585889]
[1642266953133,1.41503304,3351.0,3349.9,1.1571]
[1642266953332,0.045463,3350.7,3350.1,0.00568424]
[1642266953531,0.1193,3350.6,3350.1,0.00568424]
[1642266953732,0.1193,3350.6,3350.1,1.49183]
[1642266953938,1.33426743,3350.5,3350.1,1.49183]
[1642266954134,1.33426743,3350.5,3350.2,0.00511581]
[1642266955774,1.33426743,3350.5,3350.3,0.74591]
[1642266956174,1.33426743,3350.5,3350.4,0.00397897]
[1642266956582,0.777,3350.6,3350.4,0.00397897]
[1642266956976,1.554,3350.6,3350.3,1.16899297]
[1642266957774,1.56010264,3350.5,3350.3,1.16899297]
[1642266960327,2.33710264,3350.5,3350.3,1.16899297]
[1642266960728,2.55202924,3350.4,3350.3,1.16899297]
[1642266961127,2.55202924,3350.4,3350.3,1.23700942]
[1642266961329,0.777,3350.5,3350.3,1.23700942]
[1642266961930,2.55197183,3350.4,3350.3,1.23700942]
[1642266963580,3.32897183,3350.4,3350.3,3.2034026]
[1642266963779,0.777,3350.5,3350.3,3.23529932]
[1642266963980,0.777,3350.5,3350.4,1.90648695]
[1642266964179,0.777,3350.5,3350.4,2.33548695]
[1642266964579,0.777,3350.5,3350.4,2.4035034]
[1642266965280,1.554,3350.6,3350.4,2.4035034]
[1642266965480,1.554,3350.6,3350.5,2.03332855]
[1642266965680,1.554,3350.6,3350.5,3.91804022]
[1642266965880,0.045463,3350.8,3350.5,3.98605667]
[1642266966081,0.045463,3351.0,3350.6,1.172185]
[1642266966335,3.1225,3351.2,3350.7,1.17474]
[1642266966525,0.04830512,3351.1,3350.7,1.27439213]
[1642266966725,0.04830512,3351.1,3350.8,0.06801645]
[1642266966932,0.8963,3351.2,3350.8,0.06801645]
[1642266966933,0.8963,3351.2,3350.8,2.06801645]
[1642266967128,3.24716975,3351.4,3350.9,0.429]
[1642266967325,3.24716975,3351.4,3351.0,0.1563295]
[1642266967527,0.00170527,3351.3,3351.1,2.55373321]
[1642266967826,1.761377,3351.4,3351.2,0.1193]
[1642266968026,1.761377,3351.4,3351.3,0.429]
[1642266969026,1.761377,3351.4,3351.3,1.65065386]
[1642266970276,2.538377,3351.4,3351.3,1.65065386]
[1642266971277,2.538377,3351.4,3351.3,1.68078107]
[1642266971479,2.43702825,3351.4,3351.3,1.68078107]
[1642266971678,0.777,3351.7,3351.3,1.68078107]
[1642266971877,0.777,3351.7,3351.3,1.68621124]
[1642266972082,0.00341054,3351.6,3351.3,0.46455738]
[1642266972580,0.00284211,3351.5,3351.3,0.46455738]
[1642266972978,0.76003281,3351.7,3351.3,0.429]
[1642266973480,0.00113685,3351.6,3351.3,0.429]
[1642266975128,1.11392318,3351.4,3351.3,3.46192732]
[1642266975326,0.00113685,3351.6,3351.3,3.46192732]
[1642266975529,0.00113685,3351.6,3351.5,1.45236491]
[1642266975728,0.00113685,3351.6,3351.5,2.19797491]
[1642266975927,0.00113685,3351.6,3351.5,2.62697491]
[1642266976327,0.00113685,3351.6,3351.5,2.6588741]
[1642266976527,0.77813685,3351.6,3351.5,2.62697491]
[1642266976729,0.77813685,3351.6,3351.5,2.6602687]
[1642266976931,0.77813685,3351.6,3351.5,2.62697491]
[1642266977129,0.77813685,3351.6,3351.5,2.65944552]
[1642266977338,0.77813685,3351.6,3351.5,2.62697491]
[1642266977981,0.77813685,3351.6,3351.5,2.66440505]